fUST/lending_fUST_20250209
["ID","MTS","AMOUNT","RATE_DAILY","PERIOD"]
[352313408,1739038247645,-520.08,0.0001178,2]
[352313409,1739038247654,-4535.82,0.0001178,2]
[352313410,1739038247664,-500.0,0.0001178,2]
[352313411,1739038247674,-1528.69,0.0001178,2]
[352313412,1739038247684,-1033.83,0.0001178,2]
[352313413,1739038247694,-500.0,0.0001178,2]
[352313414,1739038247703,-4296.82,0.0001178,2]
[352313415,1739038247712,-1305.378349,0.0001178,2]
[352313416,1739038247722,-35462.71,0.0001178,2]
[352313417,1739038247731,-679.52,0.0001178,2]
[352313418,1739038247740,-1305.378349,0.0001178,2]
[352313419,1739038247752,-1103.68,0.0001178,2]
[352313420,1739038247764,-1039.94,0.0001178,2]
[352313421,1739038247774,-413.32918412,0.0001178,2]
[352313422,1739038247795,-86.67081588,0.0001178,2]
[352313423,1739038247805,-1662.18081562,0.0001178,2]
[352313424,1739038247818,-1570.67918438,0.0001178,2]
[352313425,1739038247827,-14824.55,0.0001178,2]
[352313426,1739038247838,-1887.7,0.0001178,2]
[352313427,1739038247848,-500.0,0.0001178,2]
[352313428,1739038247858,-1340.2,0.0001178,2]
[352313429,1739038247868,-500.0,0.0001178,2]
[352313430,1739038247878,-1226.39,0.0001178,2]
[352313431,1739038247889,-500.0,0.0001178,2]
[352313432,1739038247899,-1555.89,0.0001178,2]
[352313433,1739038247909,-500.0,0.0001178,2]
[352313434,1739038247919,-151.0,0.0001178,2]
[352313435,1739038247929,-1487.36,0.0001178,2]
[352313436,1739038247939,-713.98,0.0001178,2]
[352313437,1739038247950,-125.74921807,0.0001178,2]
[352313438,1739038247962,-374.25078193,0.0001178,2]
[352313439,1739038247972,-726.66,0.0001178,2]
[352313440,1739038247982,-1414.83,0.0001178,2]
[352313441,1739038247991,-500.0,0.0001178,2]
[352313442,1739038248001,-500.0,0.0001178,2]
[352313443,1739038248012,-500.0,0.0001178,2]
[352313444,1739038248021,-1886.18,0.0001178,2]
[352313445,1739038248031,-524.41969836,0.0001178,2]
[352313446,1739038248041,-500.0,0.0001178,2]
[352313447,1739038248050,-305.915347,0.0001178,2]
[352313448,1739038248060,-500.0,0.0001178,2]
[352313449,1739038248071,-305.915347,0.0001178,2]
[352313450,1739038248081,-500.0,0.0001178,2]
[352313451,1739038248091,-2937.24,0.0001178,2]
[352313452,1739038248102,-500.0,0.0001178,2]
[352313453,1739038248113,-500.0,0.0001178,2]
[352313454,1739038248122,-500.0,0.0001178,2]
[352313455,1739038248131,-500.0,0.0001178,2]
[352313456,1739038248142,-500.0,0.0001178,2]
[352313457,1739038248153,-3067.78,0.0001178,2]
[352313458,1739038248163,-3131.93,0.0001178,2]
[352313459,1739038248173,-1541.91,0.0001178,2]
[352313460,1739038248185,-766.22,0.0001178,2]
[352313461,1739038248195,-500.0,0.0001178,2]
[352313462,1739038248205,-7583.89,0.0001178,2]
[352313463,1739038248216,-1377.67,0.0001178,2]
[352313464,1739038248226,-1203.13,0.0001178,2]
[352313465,1739038248236,-768.31,0.0001178,2]
[352313466,1739038248246,-603.7,0.0001178,2]
[352313467,1739038248256,-1482.53,0.0001178,2]
[352313468,1739038248267,-725.64,0.0001178,2]
[352313469,1739038248276,-500.0,0.0001178,2]
[352313470,1739038248287,-576.52,0.0001178,2]
[352313471,1739038248297,-772.75,0.0001178,2]
[352313472,1739038248308,-500.0,0.0001178,2]
[352313473,1739038248320,-675.74,0.0001178,2]
[352313474,1739038248331,-500.0,0.0001178,2]
[352313475,1739038248342,-1259.31,0.0001178,2]
[352313476,1739038248352,-3140.18,0.0001178,2]
[352313477,1739038248363,-837.98,0.0001178,2]
[352313478,1739038248374,-915.42,0.0001178,2]
[352313479,1739038248384,-14759.1,0.0001178,2]
[352313480,1739038248395,-559.07,0.0001178,2]
[352313481,1739038248404,-193.72,0.0001178,2]
[352313482,1739038248414,-2431.94,0.0001178,2]
[352313483,1739038248425,-500.0,0.0001178,2]
[352313484,1739038248436,-2000.0,0.00011795,2]
[352313485,1739038248447,-151.0,0.000118,2]
[352313486,1739038248457,-600.0,0.00011825,2]
[352313487,1739038248467,-250.0,0.00011832,2]
[352313488,1739038248477,-231.214,0.00011832,2]
[352313489,1739038248486,-153.049,0.00011832,2]
[352313490,1739038248496,-150.0,0.00011832,2]
[352313491,1739038248506,-1975.0,0.00011832,2]
[352313492,1739038248517,-537.0,0.00011832,2]
[352313493,1739038248528,-2296.0,0.00011832,2]
[352313494,1739038248539,-396.0,0.00011832,2]
[352313495,1739038248549,-8372.57,0.000119,2]
[352313496,1739038248561,-151.0,0.000119,2]
[352313497,1739038248572,-151.0,0.000119,2]
[352313498,1739038248583,-151.0,0.000119,2]
[352313499,1739038248594,-151.341923,0.000119,2]
[352313500,1739038248605,-902.91,0.00011916,2]
[352313501,1739038248616,-500.0,0.00011916,2]
[352313502,1739038248627,-151.0,0.00011916,2]
[352313503,1739038248637,-198.21,0.00011917,2]
[352313504,1739038248647,-583.99,0.00011917,2]
[352313505,1739038248656,-316.86012232,0.00011917,2]
[352313506,1739038248666,-500.0,0.00011917,2]
[352313507,1739038248676,-204.33835583,0.00011917,2]
[352313508,1739038248687,-968.2,0.00011917,2]
[352313509,1739038248697,-508.659585,0.00011917,2]
[352313510,1739038248708,-500.0,0.00011917,2]
[352313511,1739038248718,-508.659585,0.00011917,2]
[352313512,1739038248727,-1228.38,0.00011917,2]
[352313513,1739038248738,-500.0,0.00011917,2]
[352313514,1739038248749,-1216.26,0.00011917,2]
[352313515,1739038248761,-682.78,0.00011917,2]
[352313516,1739038248772,-713.412114,0.00011917,2]
[352313517,1739038248783,-713.412114,0.00011917,2]
[352313518,1739038248793,-501.81,0.00011917,2]
[352313519,1739038248804,-151.0,0.00011917,2]
[352313520,1739038248815,-500.0,0.00011917,2]
[352313521,1739038248826,-500.0,0.00011917,2]
[352313522,1739038248838,-874.53,0.00011917,2]
[352313523,1739038248849,-318.976733,0.00011917,2]
[352313524,1739038248858,-318.976733,0.00011917,2]
[352313525,1739038248868,-500.0,0.00011917,2]
[352313526,1739038248879,-1180.9,0.00011917,2]
[352313527,1739038248888,-151.0,0.00011917,2]
[352313528,1739038248899,-500.0,0.00011917,2]
[352313529,1739038249032,-521.62,0.00011917,2]
[352313530,1739038249043,-830.9,0.00011917,2]
[352313531,1739038249053,-610.55,0.00011917,2]
[352313532,1739038249063,-500.0,0.00011917,2]
[352313533,1739038249073,-971.17,0.00011917,2]
[352313534,1739038249083,-500.0,0.00011917,2]
[352313535,1739038249092,-612.24,0.00011917,2]
[352313536,1739038249102,-532.29,0.00011917,2]
[352313537,1739038249111,-210.93856056,0.00011917,2]
[352313538,1739038249125,-366.06143944,0.00011917,2]
[352313539,1739038249135,-201.745411,0.00011917,2]
[352313540,1739038249382,-500.0,0.00010958,2]
[352313541,1739038249393,-500.0,0.00010958,2]
[352313542,1739038249402,-500.0,0.00010958,2]
[352313543,1739038249413,-500.0,0.00011095,2]
[352313544,1739038249422,-500.0,0.00011232,2]
[352313545,1739038249432,-151.0,0.00011369,2]
[352313546,1739038249443,-151.0,0.00011506,2]
[352313547,1739038249452,-151.0,0.00011643,2]
[352313548,1739038249462,-151.0,0.0001168,2]
[352313549,1739038249472,-348.134589,0.00011917,2]
[352313550,1739038249483,-500.0,0.00011917,2]
[352313551,1739038249492,-1064.8,0.00011917,2]
[352313552,1739038249502,-1091.327517,0.00011917,2]
[352313553,1739038249511,-500.0,0.00011917,2]
[352313554,1739038249522,-1091.327517,0.00011917,2]
[352313555,1739038249532,-764.49,0.00011917,2]
[352313556,1739038249541,-3291.56,0.00011917,2]
[352313557,1739038249551,-538.98,0.00011917,2]
[352313558,1739038249562,-151.0,0.00011917,2]
[352313559,1739038249572,-500.0,0.00011917,2]
[352313560,1739038249582,-267.077224,0.00011917,2]
[352313561,1739038249591,-267.077224,0.00011917,2]
[352313562,1739038249601,-151.0,0.00011917,2]
[352313563,1739038249610,-925.2,0.00011917,2]
[352313564,1739038249619,-520.08,0.00011917,2]
[352313565,1739038249629,-1528.69,0.00011917,2]
[352313566,1739038249638,-1033.83,0.00011917,2]
[352313567,1739038249647,-500.0,0.00011917,2]
[352313568,1739038249657,-4296.82,0.00011917,2]
[352313569,1739038249667,-1305.378349,0.00011917,2]
[352313570,1739038249677,-19867.87560149,0.00011917,2]
[352313571,1739038250109,-500.0,0.00010958,2]
[352313572,1739038250119,-500.0,0.00010958,2]
[352313573,1739038250129,-500.0,0.00010958,2]
[352313574,1739038250138,-500.0,0.00010958,2]
[352313575,1739038250147,-500.0,0.00010958,2]
[352313576,1739038250157,-460.76,0.00011095,2]
[352313577,1739038250165,-500.0,0.00011095,2]
[352313578,1739038250175,-500.0,0.00011095,2]
[352313579,1739038250184,-500.0,0.00011232,2]
[352313580,1739038250194,-500.0,0.00011232,2]
[352313581,1739038250204,-500.0,0.00011369,2]
[352313582,1739038250214,-500.0,0.00011369,2]
[352313583,1739038250224,-500.0,0.00011506,2]
[352313584,1739038250234,-500.0,0.00011506,2]
[352313585,1739038250243,-476.73,0.00011643,2]
[352313586,1739038250253,-500.0,0.00011643,2]
[352313587,1739038250263,-15594.83439851,0.00011917,2]
[352313588,1739038250272,-679.52,0.00011917,2]
[352313589,1739038250282,-1305.378349,0.00011917,2]
[352313590,1739038250291,-1103.68,0.00011917,2]
[352313591,1739038250301,-1039.94,0.00011917,2]
[352313592,1739038250312,-500.0,0.00011917,2]
[352313593,1739038250323,-3232.86,0.00011917,2]
[352313594,1739038250333,-14824.55,0.00011917,2]
[352313595,1739038250342,-1887.7,0.00011917,2]
[352313596,1739038250352,-500.0,0.00011917,2]
[352313597,1739038250362,-1340.2,0.00011917,2]
[352313598,1739038250371,-500.0,0.00011917,2]
[352313599,1739038250380,-1226.39,0.00011917,2]
[352313600,1739038250390,-500.0,0.00011917,2]
[352313601,1739038250400,-1555.89,0.00011917,2]
[352313602,1739038250410,-500.0,0.00011917,2]
[352313603,1739038250420,-151.0,0.00011917,2]
[352313604,1739038250430,-1487.36,0.00011917,2]
[352313605,1739038250440,-713.98,0.00011917,2]
[352313606,1739038250450,-500.0,0.00011917,2]
[352313607,1739038250459,-726.66,0.00011917,2]
[352313608,1739038250468,-1414.83,0.00011917,2]
[352313609,1739038250477,-500.0,0.00011917,2]
[352313610,1739038250487,-260.22843773,0.00011917,2]
[352313611,1739038250496,-500.0,0.00011917,2]
[352313612,1739038250505,-1886.18,0.00011917,2]
[352313613,1739038250514,-500.0,0.00011917,2]
[352313614,1739038250524,-305.915347,0.00011917,2]
[352313615,1739038250533,-500.0,0.00011917,2]
[352313616,1739038250543,-305.915347,0.00011917,2]
[352313617,1739038250552,-500.0,0.00011917,2]
[352313618,1739038250562,-2937.24,0.00011917,2]
[352313619,1739038250572,-500.0,0.00011917,2]
[352313620,1739038250582,-500.0,0.00011917,2]
[352313621,1739038250591,-500.0,0.00011917,2]
[352313622,1739038250601,-500.0,0.00011917,2]
[352313623,1739038250610,-3067.78,0.00011917,2]
[352313624,1739038250620,-3131.93,0.00011917,2]
[352313625,1739038250630,-1541.91,0.00011917,2]
[352313626,1739038250639,-766.22,0.00011917,2]
[352313627,1739038250648,-500.0,0.00011917,2]
[352313628,1739038250658,-7583.89,0.00011917,2]
[352313629,1739038250667,-1377.67,0.00011917,2]
[352313630,1739038250678,-1203.13,0.00011917,2]
[352313631,1739038250687,-768.31,0.00011917,2]
[352313632,1739038250698,-603.7,0.00011917,2]
[352313633,1739038250708,-1482.53,0.00011917,2]
[352313634,1739038250717,-725.64,0.00011917,2]
[352313635,1739038250727,-481.37302079,0.00011917,2]
[352313636,1739038250736,-576.52,0.00011917,2]
[352313637,1739038250745,-772.75,0.00011917,2]
[352313638,1739038250757,-500.0,0.00011917,2]
[352313639,1739038250767,-675.74,0.00011917,2]
[352313640,1739038250776,-500.0,0.00011917,2]
[352313641,1739038250785,-1259.31,0.00011917,2]
[352313642,1739038250795,-3140.18,0.00011917,2]
[352313643,1739038250806,-837.98,0.00011917,2]
[352313644,1739038250815,-915.42,0.00011917,2]
[352313645,1739038250825,-14759.1,0.00011917,2]
[352313646,1739038250836,-277.358288,0.00011917,2]
[352313647,1739038250846,-559.07,0.00011917,2]
[352313648,1739038250855,-2431.94,0.00011917,2]
[352313649,1739038250865,-277.358288,0.00011917,2]
[352313650,1739038250875,-500.0,0.00011917,2]
[352313651,1739038250884,-151.0,0.00011917,2]
[352313652,1739038250894,-769.65789963,0.00011947,2]
[352313653,1739038250903,-155.0,0.00011948,2]
[352313654,1739038250913,-155.01,0.00011948,2]
[352313655,1739038250923,-500.0,0.00011976,2]
[352313656,1739038250933,-6163.06065586,0.00011991,2]
[352313657,1739038250943,-5012.0,0.00012,2]
[352313658,1739038250952,-10011.0,0.00012,2]
[352313659,1739038250963,-10000.0,0.00012,2]
[352313660,1739038250972,-4645.17167279,0.00012,2]
[352313661,1739038251077,-500.0,0.00011095,2]
[352313662,1739038251087,-500.0,0.00011232,2]
[352313663,1739038251096,-350.0,0.00011369,2]
[352313674,1739039045103,1000.0,0.00016,99]
[352313677,1739039174518,50116.7675,0.0001402,28]
[352313744,1739039432227,-904.68584382,0.0001,3]
[352313746,1739039432239,-166.0,0.00010134,2]
[352313748,1739039432256,-400.0,0.00010685,2]
[352313750,1739039432268,-217.62434119,0.00010727,2]
[352313752,1739039432278,-300.0,0.00010948,2]
[352313754,1739039432287,-2954.09844473,0.00010949,2]
[352313756,1739039432299,-10663.00406819,0.00010949,2]
[352313758,1739039432309,-373.76353622,0.00010957,2]
[352313760,1739039432319,-500.0,0.00010958,2]
[352313762,1739039432328,-500.0,0.00010958,2]
[352313763,1739039432338,-500.0,0.00010958,2]
[352313765,1739039432349,-500.0,0.00010958,2]
[352313767,1739039432358,-500.0,0.00010958,2]
[352313768,1739039432367,-500.0,0.00010958,2]
[352313770,1739039432377,-500.0,0.00010958,2]
[352313771,1739039432393,-500.0,0.00010958,2]
[352313773,1739039432402,-201.9740053,0.00010958,2]
[352313775,1739039432415,-300.49830655,0.00010958,2]
[352313777,1739039432425,-500.0,0.00010958,2]
[352313779,1739039432442,-500.0,0.00010958,2]
[352313781,1739039432452,-500.0,0.00010958,2]
[352313783,1739039432461,-500.0,0.00010958,2]
[352313784,1739039432471,-500.0,0.00010958,2]
[352313785,1739039432481,-500.0,0.00010958,2]
[352313786,1739039432490,-500.0,0.00010958,2]
[352313787,1739039432500,-500.0,0.00010958,2]
[352313788,1739039432509,-500.0,0.00010958,2]
[352313789,1739039432518,-500.0,0.00010958,2]
[352313790,1739039432528,-511.33349801,0.00010958,2]
[352313792,1739039432537,-500.0,0.00010958,2]
[352313793,1739039432546,-500.0,0.00010958,2]
[352313795,1739039432556,-500.0,0.00010958,2]
[352313796,1739039432565,-500.0,0.00010958,2]
[352313797,1739039432575,-500.0,0.00010958,2]
[352313798,1739039432585,-592.13,0.00010958,2]
[352313799,1739039432595,-613.69090283,0.00010958,2]
[352313800,1739039432605,-500.0,0.00010958,2]
[352313801,1739039432614,-283.02374372,0.00010958,2]
[352313802,1739039432625,-500.0,0.00010958,2]
[352313803,1739039432634,-500.30902001,0.00010958,2]
[352313805,1739039432644,-248.8516315,0.00010958,2]
[352313806,1739039432653,-294.72392032,0.00010958,2]
[352313807,1739039432663,-595.3,0.00010958,2]
[352313808,1739039432672,-663.4,0.00010958,2]
[352313809,1739039432682,-500.0,0.00010958,2]
[352313810,1739039432692,-724.71,0.00010958,2]
[352313811,1739039432701,-500.0,0.00010958,2]
[352313812,1739039432711,-500.0,0.00010958,2]
[352313813,1739039432720,-500.0,0.00010958,2]
[352313814,1739039432730,-1221.92,0.00010958,2]
[352313815,1739039432739,-500.0,0.00010958,2]
[352313816,1739039432749,-1216.59,0.00010958,2]
[352313817,1739039432759,-548.93,0.00010958,2]
[352313818,1739039432768,-985.72,0.00010958,2]
[352313819,1739039432778,-500.0,0.00010958,2]
[352313820,1739039432788,-500.0,0.00010958,2]
[352313821,1739039432798,-543.17,0.00010958,2]
[352313822,1739039432807,-500.0,0.00010958,2]
[352313823,1739039432817,-500.0,0.00010958,2]
[352313824,1739039432827,-389.54491019,0.00010958,2]
[352313825,1739039432836,-500.0,0.00010958,2]
[352313826,1739039432845,-859.29,0.00010958,2]
[352313827,1739039432857,-500.0,0.00010958,2]
[352313828,1739039432866,-500.0,0.00010958,2]
[352313829,1739039432876,-500.0,0.00010958,2]
[352313830,1739039432886,-1144.1,0.00010958,2]
[352313831,1739039432896,-500.0,0.00010958,2]
[352313832,1739039432905,-211.69,0.00010958,2]
[352313833,1739039432915,-500.0,0.00010958,2]
[352313834,1739039432924,-796.58,0.00010958,2]
[352313835,1739039432934,-538.85,0.00010958,2]
[352313836,1739039432943,-500.0,0.00010958,2]
[352313837,1739039432953,-500.0,0.00010958,2]
[352313838,1739039432963,-500.0,0.00010958,2]
[352313839,1739039432973,-500.0,0.00010958,2]
[352313840,1739039432983,-500.0,0.00010958,2]
[352313841,1739039432993,-500.0,0.00010958,2]
[352313842,1739039433002,-915.62,0.00010958,2]
[352313843,1739039433011,-500.0,0.00010958,2]
[352313844,1739039433021,-500.0,0.00010958,2]
[352313845,1739039433031,-500.0,0.00010958,2]
[352313846,1739039433042,-500.0,0.00010958,2]
[352313847,1739039433052,-593.53,0.00010958,2]
[352313848,1739039433062,-526.91,0.00010958,2]
[352313849,1739039433072,-500.0,0.00010958,2]
[352313850,1739039433082,-588.83,0.00010958,2]
[352313851,1739039433092,-887.68,0.00010958,2]
[352313852,1739039433104,-520.73,0.00010958,2]
[352313853,1739039433114,-500.0,0.00010958,2]
[352313854,1739039433123,-500.0,0.00010958,2]
[352313855,1739039433133,-861.42,0.00010958,2]
[352313856,1739039433143,-500.0,0.00010958,2]
[352313857,1739039433152,-500.0,0.00010958,2]
[352313858,1739039433164,-500.0,0.00010958,2]
[352313859,1739039433176,-500.0,0.00010958,2]
[352313860,1739039433186,-103.46800107,0.00010958,2]
[352313861,1739039433200,-396.53199893,0.00010958,2]
[352313862,1739039433211,-1026.21,0.00010958,2]
[352313863,1739039433222,-533.45800107,0.00010958,2]
[352313864,1739039433234,-467.28199893,0.00010958,2]
[352313865,1739039433245,-48.01800107,0.00010958,2]
[352313866,1739039433259,-451.98199893,0.00010958,2]
[352313867,1739039433270,-500.0,0.00010958,2]
[352313868,1739039433281,-391.14276501,0.00010958,2]
[352313869,1739039433294,-108.85723499,0.00010958,2]
[352313870,1739039433304,-653.32,0.00010958,2]
[352313871,1739039433314,-500.0,0.00010958,2]
[352313872,1739039433324,-500.0,0.00010958,2]
[352313873,1739039433334,-907.94,0.00010958,2]
[352313874,1739039433343,-542.96850072,0.00010958,2]
[352313875,1739039433357,-1442.49149928,0.00010958,2]
[352313876,1739039433366,-682.61,0.00010958,2]
[352313877,1739039433376,-500.0,0.00010958,2]
[352313878,1739039433386,-855.76,0.00010958,2]
[352313879,1739039433395,-500.0,0.00010958,2]
[352313880,1739039433405,-4155.0,0.00010958,2]
[352313881,1739039433414,-500.0,0.00010958,2]
[352313882,1739039433424,-30522.83,0.00010958,2]
[352313883,1739039433434,-500.0,0.00010958,2]
[352313884,1739039433444,-500.0,0.00010958,2]
[352313885,1739039433454,-1306.64,0.00010958,2]
[352313886,1739039433464,-1577.08,0.00010958,2]
[352313887,1739039433474,-500.0,0.00010958,2]
[352313888,1739039433484,-500.0,0.00010958,2]
[352313889,1739039433495,-202.90779649,0.00010958,2]
[352313890,1739039433504,-946.05,0.00010958,2]
[352313891,1739039433514,-259.17818765,0.00010958,2]
[352313892,1739039433524,-500.0,0.00010958,2]
[352313893,1739039433534,-1026.97,0.00010958,2]
[352313894,1739039433544,-2630.77,0.00010958,2]
[352313895,1739039433555,-500.0,0.00010958,2]
[352313896,1739039433565,-500.0,0.00010958,2]
[352313897,1739039433574,-500.0,0.00010958,2]
[352313898,1739039433584,-500.0,0.00010958,2]
[352313899,1739039433594,-500.0,0.00010958,2]
[352313900,1739039433605,-500.0,0.00010958,2]
[352313901,1739039433616,-500.0,0.00010958,2]
[352313902,1739039433626,-500.0,0.00010958,2]
[352313903,1739039433636,-500.0,0.00010958,2]
[352313904,1739039433646,-12074.36,0.00010958,2]
[352313905,1739039433656,-612.68,0.00010958,2]
[352313906,1739039433666,-3929.56,0.00010958,2]
[352313907,1739039433676,-1584.98,0.00010958,2]
[352313908,1739039433686,-500.0,0.00010958,2]
[352313909,1739039433699,-500.0,0.00010958,2]
[352313910,1739039433710,-500.0,0.00010958,2]
[352313911,1739039433720,-575.27,0.00010958,2]
[352313912,1739039433730,-1266.86,0.00010958,2]
[352313913,1739039433741,-587.1,0.00010958,2]
[352313914,1739039433751,-514.39938973,0.00010958,2]
[352313915,1739039433761,-1235.99,0.00010958,2]
[352313916,1739039433771,-500.0,0.00010958,2]
[352313917,1739039433779,-887.45,0.00010958,2]
[352313918,1739039433786,-500.0,0.00010958,2]
[352313919,1739039433796,-500.0,0.00010958,2]
[352313920,1739039433805,-1173.39,0.00010958,2]
[352313921,1739039433815,-500.0,0.00010958,2]
[352313922,1739039433825,-397.23,0.00010958,2]
[352313923,1739039433834,-500.0,0.00010958,2]
[352313924,1739039433844,-500.0,0.00010958,2]
[352313925,1739039433855,-500.0,0.00010958,2]
[352313926,1739039433864,-500.0,0.00010958,2]
[352313927,1739039433874,-1569.38,0.00010958,2]
[352313928,1739039433884,-500.0,0.00010958,2]
[352313929,1739039433895,-500.0,0.00010958,2]
[352313930,1739039433904,-500.0,0.00010958,2]
[352313931,1739039433914,-500.0,0.00010958,2]
[352313932,1739039433925,-500.0,0.00010958,2]
[352313933,1739039433935,-500.0,0.00010958,2]
[352313934,1739039433944,-500.0,0.00010958,2]
[352313935,1739039433954,-500.0,0.00010958,2]
[352313936,1739039433964,-500.0,0.00010958,2]
[352313937,1739039433973,-500.0,0.00010958,2]
[352313938,1739039433983,-627.42,0.00010958,2]
[352313939,1739039433992,-500.0,0.00010958,2]
[352313940,1739039434002,-2448.66,0.00010958,2]
[352313941,1739039434011,-1122.78,0.00010958,2]
[352313942,1739039434021,-2492.33,0.00010958,2]
[352313943,1739039434031,-500.0,0.00010958,2]
[352313944,1739039434041,-500.0,0.00010958,2]
[352313945,1739039434051,-500.0,0.00010958,2]
[352313946,1739039434060,-500.0,0.00010958,2]
[352313947,1739039434071,-519.59,0.00010958,2]
[352313948,1739039434081,-1301.47,0.00010958,2]
[352313949,1739039434090,-6246.96,0.00010958,2]
[352313950,1739039434101,-500.0,0.00010958,2]
[352313951,1739039434111,-576.62,0.00010958,2]
[352313952,1739039434120,-500.0,0.00010958,2]
[352313953,1739039434130,-500.0,0.00010958,2]
[352313954,1739039434139,-1204.4,0.00010958,2]
[352313955,1739039434149,-500.0,0.00010958,2]
[352313956,1739039434162,-379.03767898,0.00010958,2]
[352313957,1739039434172,-500.0,0.00010958,2]
[352313958,1739039434182,-1145.37,0.00010958,2]
[352313959,1739039434191,-500.0,0.00010958,2]
[352313960,1739039434202,-500.0,0.00010958,2]
[352313961,1739039434211,-649.91,0.00010958,2]
[352313962,1739039434221,-500.0,0.00010958,2]
[352313963,1739039434230,-500.0,0.00010958,2]
[352313964,1739039434241,-618.07,0.00010958,2]
[352313965,1739039434251,-500.0,0.00010958,2]
[352313966,1739039434260,-2619.5,0.00010958,2]
[352313967,1739039434269,-500.0,0.00010958,2]
[352313968,1739039434279,-500.0,0.00010958,2]
[352313969,1739039434289,-2974.01,0.00010958,2]
[352313970,1739039434298,-11725.96,0.00010958,2]
[352313971,1739039434308,-632.59,0.00010958,2]
[352313972,1739039434318,-230.38417379,0.00010958,2]
[352313973,1739039434327,-159.45989177,0.00010995,2]
[352313974,1739039434337,-1000.0,0.00011,11]
[352313975,1739039434347,-154.5736464,0.00011,2]
[352313976,1739039434356,-154.5736464,0.00011,2]
[352313977,1739039434367,-154.5736464,0.00011,2]
[352313978,1739039434376,-500.0,0.00011094,2]
[352313979,1739039434387,-500.0,0.00011094,2]
[352313980,1739039434397,-500.0,0.00011094,2]
[352313981,1739039434407,-500.0,0.00011094,2]
[352313982,1739039434416,-500.0,0.00011094,2]
[352313983,1739039434426,-500.0,0.00011094,2]
[352313984,1739039434435,-265.34,0.00011094,2]
[352313985,1739039434444,-500.0,0.00011095,2]
[352313986,1739039434454,-504.46726706,0.00011095,2]
[352313987,1739039434464,-500.0,0.00011095,2]
[352313988,1739039434474,-500.0,0.00011095,2]
[352313989,1739039434484,-332.64203211,0.00011095,2]
[352313990,1739039434493,-500.0,0.00011095,2]
[352313991,1739039434502,-592.13,0.00011095,2]
[352313992,1739039434511,-500.0,0.00011095,2]
[352313993,1739039434521,-500.0,0.00011095,2]
[352313994,1739039434530,-595.3,0.00011095,2]
[352313995,1739039434539,-663.4,0.00011095,2]
[352313996,1739039434549,-500.0,0.00011095,2]
[352313997,1739039434558,-724.71,0.00011095,2]
[352313998,1739039434567,-500.0,0.00011095,2]
[352313999,1739039434577,-500.0,0.00011095,2]
[352314000,1739039434586,-1221.92,0.00011095,2]
[352314001,1739039434596,-500.0,0.00011095,2]
[352314002,1739039434607,-1216.59,0.00011095,2]
[352314003,1739039434616,-548.93,0.00011095,2]
[352314004,1739039434626,-985.72,0.00011095,2]
[352314005,1739039434636,-500.0,0.00011095,2]
[352314006,1739039434646,-500.0,0.00011095,2]